[Event "Malawi Open Chess Chp"]
[Site "followchess.com"]
[Date "2022.06.10"]
[Round "2"]
[White "Chiona, Richard"]
[Black "Chimthere, Alfred Charles"]
[Result "1-0"]
[WhiteElo "1896"]
[BlackElo "2047"]
[ECO "A29"]
[WhiteFed "MAW"]
[BlackFed "MAW"]
[FCGameId "781790008"]
[WhiteFideId "20500882"]
[BlackFideId "16400046"]
[TimeControl "5400"]

1. c4 {[%clk 1:29:33]} e5 {[%clk 1:29:12]} 2. Nc3 {[%clk 1:28:20]} Nf6 
{[%clk 1:29:06]} 3. Nf3 {[%clk 1:27:54]} Nc6 {[%clk 1:27:35]} 4. g3 
{[%clk 1:27:11]} Bb4 {[%clk 1:26:42]} 5. Bg2 {[%clk 1:26:38]} Bxc3 
{[%clk 1:25:58]} 6. bxc3 {[%clk 1:26:31]} O-O {[%clk 1:25:27]} 7. O-O 
{[%clk 1:25:32]} d6 {[%clk 1:25:02]} 8. Qc2 {[%clk 1:24:56]} Bg4 
{[%clk 1:23:00]} 9. h3 {[%clk 1:23:00]} Be6 {[%clk 1:22:18]} 10. d3 
{[%clk 1:22:05]} h6 {[%clk 1:20:14]} 11. Rb1 {[%clk 1:21:45]} Rb8 
{[%clk 1:20:00]} 12. Ba3 {[%clk 1:18:59]} Qd7 {[%clk 1:19:37]} 13. Kh2 
{[%clk 1:18:35]} Rfe8 {[%clk 1:19:01]} 14. e4 {[%clk 1:17:37]} Ne7 
{[%clk 1:18:04]} 15. Nd2 {[%clk 1:16:47]} g5 {[%clk 1:13:42]} 16. d4 
{[%clk 1:16:17]} Qd8 {[%clk 1:12:26]} 17. Rfd1 {[%clk 1:15:50]} Ng6 
{[%clk 1:11:41]} 18. d5 {[%clk 1:13:33]} Bd7 {[%clk 1:11:09]} 19. c5 
{[%clk 1:13:22]} dxc5 {[%clk 1:06:01]} 20. Bxc5 {[%clk 1:13:09]} b6 
{[%clk 1:05:57]} 21. Ba3 {[%clk 1:12:30]} Nh7 {[%clk 0:56:25]} 22. c4 
{[%clk 1:11:03]} Qf6 {[%clk 0:53:27]} 23. Kg1 {[%clk 1:10:01]} c5 
{[%clk 0:49:50]} 24. dxc6 {[%clk 1:09:37]} Bxc6 {[%clk 0:49:48]} 25. Nf1 
{[%clk 1:09:06]} Rbd8 {[%clk 0:49:26]} 26. Ne3 {[%clk 1:08:57]} Nhf8 
{[%clk 0:44:00]} 27. Nd5 {[%clk 1:07:08]} Qg7 {[%clk 0:40:03]} 28. Ne3 
{[%clk 1:01:21]} Qf6 {[%clk 0:33:31]} 29. Ng4 {[%clk 1:00:48]} Qg7 
{[%clk 0:33:30]} 30. Ne3 {[%clk 0:59:39]} Qf6 {[%clk 0:32:43]} 31. Ng4 
{[%clk 0:56:12]} Qh8 {[%clk 0:32:03]} 32. Rd3 {[%clk 0:52:45]} Rxd3 
{[%clk 0:29:29]} 33. Qxd3 {[%clk 0:52:40]} h5 {[%clk 0:28:39]} 34. Ne3 
{[%clk 0:51:57]} Bd7 {[%clk 0:22:04]} 35. Qd6 {[%clk 0:51:46]} Be6 
{[%clk 0:20:53]} 36. Nd5 {[%clk 0:50:56]} Rc8 {[%clk 0:19:23]} 37. c5 
{[%clk 0:47:34]} bxc5 {[%clk 0:16:53]} 38. Bxc5 {[%clk 0:47:28]} a5 
{[%clk 0:13:45]} 39. Be3 {[%clk 0:47:13]} Nh7 {[%clk 0:09:03]} 40. Rb7 
{[%clk 0:43:55]} Qg7 {[%clk 0:07:45]} 41. Ra7 {[%clk 0:41:48]} h4 
{[%clk 0:07:04]} 42. g4 {[%clk 0:40:44]} Bxd5 {[%clk 0:05:48]} 43. Qxd5 
{[%clk 0:38:58]} Nf6 {[%clk 0:04:26]} 44. Qxa5 {[%clk 0:38:30]} Re8 
{[%clk 0:03:45]} 45. Bxg5 {[%clk 0:38:07]} Nf4 {[%clk 0:03:36]} 46. Bxf4 
{[%clk 0:35:39]} exf4 {[%clk 0:03:06]} 47. e5 {[%clk 0:35:20]} Nxg4 
{[%clk 0:03:00]} 48. hxg4 {[%clk 0:33:45]} Qxg4 {[%clk 0:02:45]} 49. Qd5 
{[%clk 0:32:50]} Re6 {[%clk 0:02:04]} 50. Ra8+ {[%clk 0:32:24]} Kh7 
{[%clk 0:01:47]} 51. Ra7 {[%clk 0:30:34]} Kg7 {[%clk 0:01:25]} 52. Qd7 
{[%clk 0:29:37]} Qg6 {[%clk 0:01:17]} 53. Qxf7+ {[%clk 0:27:51]} Qxf7 
{[%clk 0:01:14]} 54. Rxf7+ {[%clk 0:27:50]} Kxf7 {[%clk 0:01:12]} 55. Bd5 
{[%clk 0:27:49]} Ke7 {[%clk 0:01:12]} 56. Bxe6 {[%clk 0:26:51]} Kxe6 
{[%clk 0:01:11]} 57. Kg2 {[%clk 0:26:45]} Kxe5 58. a4 {[%clk 0:26:42]} Ke4 
{[%clk 0:01:01]} 59. a5 {[%clk 0:26:35]} f3+ {[%clk 0:00:31]} 60. Kg1 
{[%clk 0:26:32]} Kd3 {[%clk 0:00:27]} 61. a6 {[%clk 0:26:30]} h3 
{[%clk 0:00:25]} 62. a7 {[%clk 0:26:29]} Ke2 {[%clk 0:00:24]} 63. a8=Q 
{[%clk 0:26:22]} h2+ 64. Kxh2 {[%clk 0:26:20]} Kxf2 {[%clk 0:00:23]} 65. Qf8 
{[%clk 0:26:08]} Ke2 {[%clk 0:00:19]} 66. Kg3 {[%clk 0:26:05]} 1-0

[Event "Malawi Open Chess Chp"]
[Site "followchess.com"]
[Date "2022.06.10"]
[Round "2"]
[White "Foster Ken"]
[Black "Mwale, George"]
[Result "1-0"]
[WhiteElo "1886"]
[BlackElo "2025"]
[ECO "B01"]
[WhiteFed "MAW"]
[BlackFed "MAW"]
[FCGameId "-1015038891"]
[WhiteFideId "20502109"]
[BlackFideId "20500254"]
[TimeControl "5400"]

1. e4 {[%clk 1:30:00]} d5 {[%clk 1:28:54]} 2. exd5 {[%clk 1:28:09]} Nf6 
{[%clk 1:27:23]} 3. b3 {[%clk 1:27:29]} Nxd5 {[%clk 1:26:36]} 4. Bb2 
{[%clk 1:27:19]} Nf6 {[%clk 1:26:07]} 5. Nf3 {[%clk 1:26:55]} e6 
{[%clk 1:25:01]} 6. Bb5+ Nbd7 {[%clk 1:23:26]} 7. O-O {[%clk 1:25:22]} a6 
{[%clk 1:22:50]} 8. Be2 {[%clk 1:25:07]} Bd6 {[%clk 1:22:01]} 9. d3 
{[%clk 1:24:46]} O-O {[%clk 1:21:03]} 10. Nbd2 {[%clk 1:24:34]} b6 
{[%clk 1:20:02]} 11. Ne4 {[%clk 1:24:26]} Be7 {[%clk 1:19:44]} 12. Nd4 
{[%clk 1:22:09]} Bb7 {[%clk 1:17:17]} 13. Bf3 {[%clk 1:21:38]} Nxe4 
{[%clk 1:16:52]} 14. Bxe4 {[%clk 1:21:22]} Bxe4 {[%clk 1:15:33]} 15. dxe4 
{[%clk 1:21:20]} Bd6 {[%clk 1:09:03]} 16. Nc6 {[%clk 1:19:59]} Qg5 
{[%clk 1:07:21]} 17. e5 {[%clk 1:17:53]} Nxe5 {[%clk 0:59:39]} 18. f4 
{[%clk 1:17:06]} Nf3+ {[%clk 0:57:11]} 19. Qxf3 {[%clk 1:16:44]} Qc5+ 
{[%clk 0:56:57]} 20. Rf2 {[%clk 1:15:45]} Bxf4 {[%clk 0:53:49]} 21. b4 
{[%clk 1:14:31]} Qd6 {[%clk 0:52:10]} 22. Qxf4 {[%clk 1:12:47]} Qxc6 
{[%clk 0:51:07]} 23. Qg5 {[%clk 1:11:56]} f6 {[%clk 0:50:29]} 24. Rxf6 
{[%clk 1:10:58]} Rxf6 {[%clk 0:48:45]} 25. Bxf6 {[%clk 1:10:41]} Qd7 
{[%clk 0:48:34]} 26. Be5 {[%clk 1:09:39]} Rf8 {[%clk 0:48:08]} 27. Qg4 
{[%clk 1:07:50]} Qf7 {[%clk 0:45:57]} 28. h3 {[%clk 1:07:37]} g6 
{[%clk 0:45:51]} 29. Qg3 {[%clk 1:06:42]} Qf5 {[%clk 0:44:34]} 30. c3 
{[%clk 1:05:16]} c5 {[%clk 0:43:30]} 31. bxc5 {[%clk 1:05:00]} bxc5 
{[%clk 0:43:29]} 32. Rd1 {[%clk 1:04:17]} a5 {[%clk 0:41:56]} 33. Kh2 
{[%clk 1:02:45]} Qc2 {[%clk 0:40:51]} 34. Rd7 {[%clk 1:01:54]} Rf2 
{[%clk 0:39:10]} 35. Rg7+ {[%clk 1:01:01]} Kf8 {[%clk 0:39:07]} 36. Qg5 
{[%clk 1:00:24]} 1-0

[Event "Malawi Open Chess Chp"]
[Site "followchess.com"]
[Date "2022.06.10"]
[Round "2"]
[White "Nyambalo, Joseph Xavier"]
[Black "Mpinganjira Stanley Frank"]
[Result "0-1"]
[WhiteElo "2043"]
[BlackElo "1700"]
[ECO "A05"]
[WhiteFed "MAW"]
[BlackFed "MAW"]
[FCGameId "1312463371"]
[WhiteFideId "20500041"]
[BlackFideId "20501960"]
[TimeControl "5400"]

1. Nf3 {[%clk 1:29:42]} Nf6 {[%clk 1:29:32]} 2. g3 {[%clk 1:29:37]} e6 
{[%clk 1:28:57]} 3. Bg2 {[%clk 1:29:31]} d5 {[%clk 1:28:23]} 4. d3 
{[%clk 1:29:24]} Be7 {[%clk 1:27:00]} 5. O-O {[%clk 1:29:08]} O-O 
{[%clk 1:26:52]} 6. Nbd2 {[%clk 1:29:06]} c5 {[%clk 1:26:06]} 7. e4 
{[%clk 1:28:56]} Nc6 {[%clk 1:25:26]} 8. e5 {[%clk 1:28:52]} Nd7 
{[%clk 1:25:01]} 9. Re1 {[%clk 1:28:48]} Qc7 {[%clk 1:24:10]} 10. Qe2 
{[%clk 1:28:46]} b5 {[%clk 1:23:35]} 11. Nf1 {[%clk 1:28:40]} a5 
{[%clk 1:23:12]} 12. Bf4 {[%clk 1:28:37]} a4 {[%clk 1:22:44]} 13. c3 
{[%clk 1:28:18]} a3 {[%clk 1:21:38]} 14. b3 {[%clk 1:28:12]} Bb7 
{[%clk 1:20:38]} 15. Rac1 {[%clk 1:27:34]} Qb6 {[%clk 1:19:45]} 16. h4 
{[%clk 1:27:10]} b4 {[%clk 1:18:55]} 17. c4 {[%clk 1:27:08]} dxc4 
{[%clk 1:18:04]} 18. dxc4 {[%clk 1:27:02]} Nd4 {[%clk 1:17:05]} 19. Nxd4 
{[%clk 1:26:59]} cxd4 {[%clk 1:16:31]} 20. Rcd1 {[%clk 1:26:31]} Bxg2 
{[%clk 1:13:40]} 21. Kxg2 {[%clk 1:26:29]} Rfd8 {[%clk 1:12:48]} 22. Nd2 
{[%clk 1:26:00]} Nc5 {[%clk 1:08:54]} 23. Ne4 {[%clk 1:25:08]} Qc6 
{[%clk 1:08:08]} 24. Qf3 {[%clk 1:25:05]} Rac8 {[%clk 1:06:17]} 25. Nxc5 
{[%clk 1:24:59]} Qxf3+ 26. Kxf3 Bxc5 {[%clk 1:04:41]} 27. Rd3 {[%clk 1:24:55]} 
Rd7 {[%clk 1:03:47]} 28. h5 {[%clk 1:24:49]} h6 {[%clk 1:02:34]} 29. g4 
{[%clk 1:24:35]} Be7 {[%clk 1:01:57]} 30. Red1 {[%clk 1:24:22]} Rcd8 
{[%clk 1:00:12]} 31. Ke4 {[%clk 1:24:16]} f6 {[%clk 0:58:19]} 32. Bg3 
{[%clk 1:23:22]} Kf7 {[%clk 0:57:26]} 33. f4 {[%clk 1:23:13]} g6 
{[%clk 0:53:51]} 34. hxg6+ {[%clk 1:22:52]} Kxg6 {[%clk 0:53:18]} 35. f5+ Kf7 
{[%clk 0:51:06]} 36. Rxd4 {[%clk 1:22:41]} Rxd4+ {[%clk 0:48:17]} 37. Rxd4 
{[%clk 1:22:40]} exf5+ {[%clk 0:46:07]} 38. gxf5 fxe5 {[%clk 0:43:18]} 39. Rxd8 
{[%clk 1:22:35]} Bxd8 {[%clk 0:43:10]} 40. Bxe5 {[%clk 1:22:32]} Be7 
{[%clk 0:41:30]} 41. Kd5 {[%clk 1:22:10]} Ke8 {[%clk 0:41:21]} 42. c5 
{[%clk 1:21:51]} Kd7 {[%clk 0:41:18]} 43. c6+ {[%clk 1:21:36]} Kc8 
{[%clk 0:41:17]} 44. f6 {[%clk 1:21:31]} Bf8 {[%clk 0:41:15]} 45. Bd6 
{[%clk 1:21:29]} 0-1

[Event "Malawi Open Chess Chp"]
[Site "followchess.com"]
[Date "2022.06.10"]
[Round "2"]
[White "Mwape Dennis"]
[Black "Chiwambo Stansford"]
[Result "1-0"]
[WhiteElo "2013"]
[BlackElo "1936"]
[ECO "A30"]
[WhiteFed "ZAM"]
[BlackFed "MAW"]
[FCGameId "-185544368"]
[WhiteFideId "8708886"]
[BlackFideId "20500530"]
[TimeControl "5400"]

1. c4 {[%clk 1:29:57]} c5 {[%clk 1:28:26]} 2. g3 {[%clk 1:29:51]} Nf6 
{[%clk 1:28:19]} 3. Bg2 {[%clk 1:29:47]} g6 {[%clk 1:28:11]} 4. Nc3 
{[%clk 1:29:43]} Bg7 {[%clk 1:28:02]} 5. e3 {[%clk 1:29:40]} Nc6 
{[%clk 1:27:45]} 6. Nge2 {[%clk 1:29:38]} d6 {[%clk 1:27:27]} 7. O-O 
{[%clk 1:29:32]} O-O {[%clk 1:27:24]} 8. d4 {[%clk 1:26:42]} cxd4 
{[%clk 1:26:05]} 9. exd4 {[%clk 1:26:39]} Bg4 {[%clk 1:25:09]} 10. Qa4 
{[%clk 1:26:10]} Qd7 {[%clk 1:24:23]} 11. Re1 {[%clk 1:25:14]} Bxe2 
{[%clk 1:23:46]} 12. Nxe2 {[%clk 1:23:54]} Nxd4 {[%clk 1:21:50]} 13. Qxd7 
{[%clk 1:23:46]} Nxe2+ 14. Rxe2 {[%clk 1:23:34]} Nxd7 {[%clk 1:21:38]} 15. Rxe7 
{[%clk 1:22:45]} Nc5 {[%clk 1:19:55]} 16. Bxb7 {[%clk 1:19:01]} Rae8 
{[%clk 1:19:48]} 17. Rxe8 {[%clk 1:07:56]} Rxe8 {[%clk 1:19:39]} 18. Be3 
{[%clk 1:02:36]} Nxb7 {[%clk 1:18:47]} 19. Rd1 {[%clk 1:00:57]} a5 
{[%clk 1:17:08]} 20. b3 {[%clk 0:59:44]} Bc3 {[%clk 1:16:06]} 21. Kg2 
{[%clk 0:56:42]} f6 {[%clk 1:15:35]} 22. Kf3 {[%clk 0:55:52]} Kf7 
{[%clk 1:15:19]} 23. Rd5 {[%clk 0:55:32]} Re5 {[%clk 1:14:45]} 24. Rd3 
{[%clk 0:55:06]} Bb4 {[%clk 1:14:30]} 25. g4 {[%clk 0:54:12]} Bc5 
{[%clk 1:12:57]} 26. Bd2 {[%clk 0:53:53]} h5 {[%clk 1:11:55]} 27. h3 
{[%clk 0:53:51]} h4 {[%clk 1:11:36]} 28. Bc3 {[%clk 0:53:19]} Re6 
{[%clk 1:10:59]} 29. Rd5 {[%clk 0:52:26]} g5 {[%clk 1:10:39]} 30. Bd2 
{[%clk 0:51:36]} Re5 {[%clk 1:09:51]} 31. Rd3 {[%clk 0:50:54]} Bb4 
{[%clk 1:09:22]} 32. Be3 {[%clk 0:50:27]} 1-0

[Event "Malawi Open Chess Chp"]
[Site "followchess.com"]
[Date "2022.06.10"]
[Round "2"]
[White "Shankanga Chrispin"]
[Black "Kalambo Praise"]
[Result "0-1"]
[WhiteElo "1679"]
[BlackElo "1767"]
[ECO "D02"]
[WhiteFed "ZAM"]
[BlackFed "MAW"]
[FCGameId "-440965874"]
[WhiteFideId "8711992"]
[BlackFideId "20506112"]
[TimeControl "5400"]

1. Nf3 {[%clk 1:29:56]} d5 2. d4 Bf5 {[%clk 1:28:38]} 3. c4 {[%clk 1:29:23]} e6 
{[%clk 1:28:19]} 4. Nc3 {[%clk 1:29:02]} Nf6 {[%clk 1:28:02]} 5. Bg5 
{[%clk 1:28:44]} c6 {[%clk 1:27:36]} 6. e3 {[%clk 1:28:13]} Be7 {[%clk 1:27:19]} 
7. cxd5 {[%clk 1:27:30]} exd5 {[%clk 1:26:25]} 8. Bd3 {[%clk 1:26:55]} Ne4 
{[%clk 1:24:13]} 9. Bxe7 {[%clk 1:25:44]} Qxe7 {[%clk 1:23:54]} 10. O-O 
{[%clk 1:25:22]} O-O {[%clk 1:23:34]} 11. Rc1 {[%clk 1:23:12]} Nd7 
{[%clk 1:23:16]} 12. h3 {[%clk 1:22:05]} Ndf6 {[%clk 1:22:40]} 13. a3 
{[%clk 1:21:20]} Rfe8 {[%clk 1:20:58]} 14. Ne5 {[%clk 1:20:52]} Rad8 
{[%clk 1:19:10]} 15. b4 {[%clk 1:20:14]} Nxc3 {[%clk 1:18:37]} 16. Rxc3 
{[%clk 1:20:04]} Bxd3 {[%clk 1:17:54]} 17. Qxd3 {[%clk 1:17:41]} Ne4 
{[%clk 1:17:37]} 18. Rc2 {[%clk 1:17:23]} f6 {[%clk 1:16:44]} 19. Nf3 
{[%clk 1:16:52]} Nd6 {[%clk 1:15:40]} 20. a4 {[%clk 1:16:04]} a6 
{[%clk 1:15:11]} 21. Rb1 {[%clk 1:15:23]} Nc4 {[%clk 1:14:30]} 22. b5 
{[%clk 1:14:41]} Na3 {[%clk 1:11:48]} 23. Rc5 {[%clk 1:14:26]} Nxb1 
{[%clk 1:11:22]} 24. Qxb1 {[%clk 1:14:04]} cxb5 {[%clk 1:11:03]} 25. axb5 
{[%clk 1:13:29]} axb5 {[%clk 1:10:17]} 26. Qxb5 {[%clk 1:13:18]} Qd7 
{[%clk 1:05:29]} 27. Qb3 {[%clk 1:12:03]} Re6 {[%clk 1:02:37]} 28. Nd2 
{[%clk 1:11:19]} Kh8 {[%clk 0:58:43]} 29. Rb5 {[%clk 1:10:51]} Re7 
{[%clk 0:57:06]} 30. Qb4 {[%clk 1:07:57]} h6 {[%clk 0:54:46]} 31. Nb3 
{[%clk 1:07:50]} Rb8 {[%clk 0:51:48]} 32. Nc5 {[%clk 1:07:23]} Qc8 
{[%clk 0:43:33]} 33. Nd3 {[%clk 1:07:06]} Rd7 {[%clk 0:42:47]} 34. Nc5 
{[%clk 1:05:45]} Rf7 {[%clk 0:39:24]} 35. Rb6 {[%clk 1:04:55]} Ra8 
{[%clk 0:38:44]} 36. Qb2 {[%clk 1:03:43]} Re7 {[%clk 0:37:43]} 37. Rd6 
{[%clk 1:02:46]} Qf5 {[%clk 0:34:01]} 38. Qb6 Ra1+ 39. Kh2 {[%clk 1:02:02]} Re8 
{[%clk 0:31:40]} 40. Qb2 {[%clk 1:01:20]} Rf1 {[%clk 0:31:10]} 41. Qb5 
{[%clk 1:01:01]} Qxf2 {[%clk 0:29:45]} 42. Qxe8+ {[%clk 0:59:52]} Kh7 
{[%clk 0:29:44]} 43. Nd3 {[%clk 0:57:46]} Qg1+ {[%clk 0:25:35]} 44. Kg3 
{[%clk 0:57:28]} Rf5 {[%clk 0:21:23]} 45. h4 {[%clk 0:55:16]} Qf1 
{[%clk 0:20:33]} 46. Nf4 {[%clk 0:54:01]} Qe1+ {[%clk 0:20:08]} 47. Kg4 
{[%clk 0:52:52]} Rxf4+ {[%clk 0:17:08]} 48. Kxf4 {[%clk 0:52:37]} Qf2+ 
{[%clk 0:17:02]} 49. Kg4 {[%clk 0:51:54]} Qxg2+ {[%clk 0:15:54]} 50. Kf5 
{[%clk 0:51:35]} Qh3+ {[%clk 0:15:28]} 51. Kf4 {[%clk 0:50:35]} g5+ 
{[%clk 0:15:16]} 52. hxg5 {[%clk 0:49:59]} hxg5# {[%clk 0:15:16]} {-error} 0-1

[Event "Malawi Open Chess Chp"]
[Site "followchess.com"]
[Date "2022.06.10"]
[Round "2"]
[White "Mkwezalamba Elija"]
[Black "Nyama Peter"]
[Result "0-1"]
[WhiteElo "1563"]
[BlackElo "1851"]
[ECO "C45"]
[WhiteFed "MAW"]
[BlackFed "MAW"]
[FCGameId "537670543"]
[WhiteFideId "20508042"]
[BlackFideId "20501927"]
[TimeControl "5400"]

1. e4 {[%clk 1:29:47]} e5 {[%clk 1:29:39]} 2. Nf3 {[%clk 1:29:11]} Nc6 
{[%clk 1:29:37]} 3. d4 {[%clk 1:28:37]} exd4 {[%clk 1:29:12]} 4. Nxd4 
{[%clk 1:28:22]} Nf6 5. Nc3 {[%clk 1:25:45]} Bb4 {[%clk 1:27:28]} 6. Nxc6 
{[%clk 1:24:54]} bxc6 {[%clk 1:26:45]} 7. Bd3 {[%clk 1:24:37]} O-O 
{[%clk 1:26:27]} 8. Bg5 {[%clk 1:24:19]} h6 {[%clk 1:26:04]} 9. Bh4 
{[%clk 1:23:51]} d5 {[%clk 1:25:34]} 10. O-O {[%clk 1:21:50]} Bxc3 
{[%clk 1:25:08]} 11. bxc3 {[%clk 1:21:26]} g5 {[%clk 1:23:35]} 12. e5 
{[%clk 1:20:24]} gxh4 {[%clk 1:19:16]} 13. exf6 {[%clk 1:19:58]} Qxf6 
{[%clk 1:19:07]} 14. Qd2 {[%clk 1:18:28]} h3 {[%clk 1:18:31]} 15. f4 
{[%clk 1:17:05]} Kh8 {[%clk 1:16:42]} 16. g3 {[%clk 1:15:36]} Bg4 
{[%clk 1:16:16]} 17. Rae1 Rae8 {[%clk 1:13:41]} 18. Re5 {[%clk 1:12:51]} Kg7 
{[%clk 1:08:45]} 19. Qe3 {[%clk 1:12:29]} Rxe5 {[%clk 1:04:13]} 20. fxe5 
{[%clk 1:12:17]} Qg5 {[%clk 1:04:05]} 21. Rf4 {[%clk 1:11:06]} Be6 
{[%clk 0:58:38]} 22. a4 {[%clk 1:06:20]} Rb8 {[%clk 0:57:55]} 23. Kf2 
{[%clk 1:04:55]} Rb1 {[%clk 0:57:28]} 24. c4 {[%clk 1:01:01]} Rh1 
{[%clk 0:57:10]} 25. cxd5 {[%clk 0:59:45]} cxd5 {[%clk 0:56:55]} 26. Qf3 
{[%clk 0:52:48]} Rxh2+ {[%clk 0:56:22]} 27. Kf1 {[%clk 0:52:33]} Qxe5 
{[%clk 0:54:26]} 28. Bf5 {[%clk 0:51:30]} Qa1+ 0-1

[Event "Malawi Open Chess Chp"]
[Site "followchess.com"]
[Date "2022.06.10"]
[Round "2"]
[White "Nanthambwe Hubert"]
[Black "Ngwira Davis Paul"]
[Result "0-1"]
[WhiteElo "1840"]
[BlackElo "1660"]
[ECO "B07"]
[WhiteFed "MAW"]
[BlackFed "MAW"]
[FCGameId "-1115760111"]
[WhiteFideId "20501099"]
[BlackFideId "20501447"]
[TimeControl "5400"]

1. e4 {[%clk 1:28:09]} d6 {[%clk 1:29:48]} 2. d4 {[%clk 1:28:00]} g6 
{[%clk 1:29:38]} 3. Be3 {[%clk 1:27:41]} Bg7 {[%clk 1:29:19]} 4. Nc3 
{[%clk 1:27:22]} Nf6 {[%clk 1:29:08]} 5. f3 {[%clk 1:27:03]} Nbd7 
{[%clk 1:28:25]} 6. Qd2 {[%clk 1:26:48]} c5 {[%clk 1:27:24]} 7. Nge2 
{[%clk 1:23:39]} Qa5 {[%clk 1:26:12]} 8. Ng3 {[%clk 1:20:42]} h5 
{[%clk 1:24:43]} 9. h4 {[%clk 1:20:13]} a6 {[%clk 1:24:20]} 10. Kf2 
{[%clk 1:17:14]} b5 {[%clk 1:24:00]} 11. a3 {[%clk 1:14:36]} Rb8 
{[%clk 1:22:07]} 12. Be2 {[%clk 1:13:35]} c4 {[%clk 1:19:16]} 13. Rhd1 
{[%clk 1:10:06]} e6 {[%clk 1:17:58]} 14. Kf1 {[%clk 1:05:08]} Bb7 
{[%clk 1:14:42]} 15. Bg5 {[%clk 0:59:44]} O-O 16. Bh6 {[%clk 0:58:43]} Kh7 
{[%clk 1:11:09]} 17. Bxg7 Kxg7 18. Qg5 {[%clk 0:56:58]} Qc7 {[%clk 1:10:04]} 19. 
f4 {[%clk 0:51:40]} Nh7 {[%clk 1:07:25]} 20. Nxh5+ {[%clk 0:50:45]} Kh8 
{[%clk 1:06:53]} 21. Qh6 {[%clk 0:49:19]} gxh5 {[%clk 1:06:43]} 22. Bxh5 
{[%clk 0:48:52]} Nf6 23. Bf3 {[%clk 0:47:44]} Rg8 {[%clk 1:05:25]} 24. h5 
{[%clk 0:46:48]} Rg3 {[%clk 1:04:43]} 25. f5 {[%clk 0:43:52]} Rg5 
{[%clk 1:04:26]} 26. fxe6 {[%clk 0:42:57]} Ng8 {[%clk 1:04:22]} 27. Qxg5 Nxg5 
28. exf7 {[%clk 0:41:03]} Qxf7 {[%clk 1:04:02]} 29. Kf2 {[%clk 0:40:25]} Nxe4+ 
{[%clk 1:03:22]} 30. Nxe4 {[%clk 0:40:17]} Bxe4 {[%clk 1:03:18]} 31. Rh1 
{[%clk 0:38:43]} Bxf3 {[%clk 1:02:49]} 32. gxf3 {[%clk 0:38:39]} Qf4 
{[%clk 1:02:27]} 33. Kf1 {[%clk 0:38:10]} 0-1